fUSD/lending_fUSD_20241216
["ID","MTS","AMOUNT","RATE_DAILY","PERIOD"]
[345574787,1734363041026,-500.0,0.00024799,2]
[345574788,1734363041035,-500.0,0.000248,2]
[345574789,1734363041045,-305.0151426,0.000248,2]
[345574790,1734363041056,-150.0,0.00024801,2]
[345574791,1734363041067,-150.0,0.00024804,2]
[345574792,1734363041076,-150.0,0.00024811,2]
[345574793,1734363041085,-692.77021745,0.00024826,10]
[345574794,1734363041096,-1233.85143237,0.00024826,10]
[345574795,1734363041105,-692.77021744,0.00024827,10]
[345574796,1734363041121,-2664.79910704,0.00024827,10]
[345574797,1734363041131,-151410.56750362,0.00024827,10]
[345574798,1734363041142,-200.85953551,0.00024827,10]
[345574799,1734363041151,-200.8595355,0.00024827,10]
[345574800,1734363041161,-1409.48718635,0.00024828,10]
[345574801,1734363041170,-631.27282586,0.00024829,10]
[345574802,1734363041179,-200.0,0.00024829,10]
[345574803,1734363041189,-1648.05594205,0.0002483,10]
[345574804,1734363041198,-200.0,0.0002483,10]
[345574805,1734363041208,-200.0,0.0002483,10]
[345574806,1734363041218,-631.27282587,0.0002483,10]
[345574807,1734363041227,-692.77021744,0.0002483,10]
[345574808,1734363041236,-832.13236137,0.0002483,10]
[345574809,1734363041246,-390.30614355,0.0002483,10]
[345574810,1734363041255,-826.67062308,0.0002483,10]
[345574811,1734363041264,-200.0,0.00024831,10]
[345574812,1734363041275,-104972.52051866,0.00024832,10]
[345574813,1734363041284,-16237.89237391,0.00024832,10]
[345574814,1734363041294,-29963.36117829,0.00024832,10]
[345574815,1734363041303,-1260.26204666,0.00024832,10]
[345574816,1734363041313,-692.77021744,0.00024832,10]
[345574817,1734363041322,-200.85953551,0.00024832,10]
[345574818,1734363041332,-692.77021744,0.00024833,10]
[345574819,1734363041341,-200.8595355,0.00024833,10]
[345574820,1734363041350,-1233.85143237,0.00024834,10]
[345574821,1734363041360,-692.77021744,0.00024835,10]
[345574822,1734363041372,-150.0,0.00024835,2]
[345574823,1734363041383,-1648.05594205,0.00024835,10]
[345574824,1734363041397,-200.0,0.00024835,10]
[345574825,1734363041406,-104972.52051866,0.00024836,10]
[345574826,1734363041415,-200.85953551,0.00024836,10]
[345574827,1734363041426,-830.1723648,0.00024836,10]
[345574828,1734363041436,-631.27282586,0.00024837,10]
[345574829,1734363041447,-39091.71572775,0.00024837,10]
[345574830,1734363041456,-1648.05594205,0.00024837,10]
[345574831,1734363041466,-830.1723648,0.00024838,10]
[345574832,1734363041475,-630.77227417,0.00024839,10]
[345574833,1734363041485,-6827.29666364,0.00024839,10]
[345574834,1734363041494,-1648.05594205,0.00024839,10]
[345574835,1734363041504,-104972.52051866,0.0002484,10]
[345574836,1734363041514,-150.0,0.0002484,2]
[345574837,1734363041523,-104972.52051866,0.00024841,10]
[345574838,1734363041533,-1500.0,0.00024841,2]
[345574839,1734363041544,-1250.43343722,0.00024841,10]
[345574840,1734363041554,-9888.5984641,0.00024841,10]
[345574841,1734363041563,-830.1723648,0.00024842,10]
[345574842,1734363041573,-215.65810852,0.00024842,10]
[345574843,1734363041583,-200.85953551,0.00024842,10]
[345574844,1734363041594,-2664.79910704,0.00024842,10]
[345574845,1734363041603,-832.13236137,0.00024842,10]
[345574846,1734363041613,-16237.89237391,0.00024843,10]
[345574847,1734363041629,-692.77021745,0.00024843,10]
[345574848,1734363041639,-6827.29666364,0.00024844,10]
[345574849,1734363041649,-630.77227417,0.00024844,10]
[345574850,1734363041658,-200.0,0.00024844,10]
[345574851,1734363041667,-200.8595355,0.00024844,10]
[345574852,1734363041677,-1409.48718635,0.00024844,10]
[345574853,1734363041687,-29963.36117829,0.00024845,10]
[345574854,1734363041696,-150.0,0.00024845,2]
[345574855,1734363041706,-9888.5984641,0.00024845,10]
[345574856,1734363041716,-8855.39169153,0.00024845,10]
[345574857,1734363041725,-1233.85143237,0.00024845,10]
[345574858,1734363041735,-200.85953551,0.00024845,10]
[345574859,1734363041746,-200.0,0.00024845,10]
[345574860,1734363041757,-1233.85143237,0.00024846,10]
[345574861,1734363041766,-200.0,0.00024846,10]
[345574862,1734363041775,-832.13236137,0.00024846,10]
[345574863,1734363041785,-151410.56750362,0.00024847,10]
[345574864,1734363041794,-390.30614355,0.00024847,10]
[345574865,1734363041804,-200.0,0.00024848,10]
[345574866,1734363041813,-28395.30100183,0.00024848,10]
[345574867,1734363041822,-39091.71572775,0.00024848,10]
[345574868,1734363041832,-631.27282586,0.00024848,10]
[345574869,1734363041841,-630.77227417,0.00024849,10]
[345574870,1734363041850,-39091.71572775,0.00024849,10]
[345574871,1734363041860,-826.67062308,0.00024849,10]
[345574872,1734363041873,-151410.56750362,0.00024849,10]
[345574873,1734363041883,-832.13236137,0.0002485,10]
[345574874,1734363041892,-9195.82824666,0.00024851,10]
[345574875,1734363041904,-1250.43343722,0.00024851,10]
[345574876,1734363041913,-9195.82824666,0.00024851,10]
[345574877,1734363041922,-1019.1810428,0.00024852,10]
[345574878,1734363041931,-200.0,0.00024853,10]
[345574879,1734363041940,-8855.39169153,0.00024853,10]
[345574880,1734363041951,-150.0,0.00024853,2]
[345574881,1734363041961,-104972.52051866,0.00024853,10]
[345574882,1734363041970,-500.0,0.00024854,4]
[345574883,1734363041981,-500.0,0.00024854,4]
[345574884,1734363041990,-150.0,0.00024854,2]
[345574885,1734363042000,-692.77021745,0.00024854,10]
[345574886,1734363042009,-692.77021744,0.00024854,10]
[345574887,1734363042019,-215.65810852,0.00024855,10]
[345574888,1734363042028,-692.77021744,0.00024855,10]
[345574889,1734363042038,-45061.85347201,0.00024855,10]
[345574890,1734363042047,-1260.26204666,0.00024855,10]
[345574891,1734363042067,-631.27282587,0.00024855,10]
[345574892,1734363042083,-826.67062308,0.00024855,10]
[345574893,1734363042093,-200.0,0.00024855,10]
[345574894,1734363042103,-1409.48718635,0.00024856,10]
[345574895,1734363042113,-390.30614355,0.00024856,10]
[345574896,1734363042127,-1250.43343722,0.00024857,10]
[345574897,1734363042139,-692.77021745,0.00024857,10]
[345574898,1734363042148,-1019.1810428,0.00024858,10]
[345574899,1734363042158,-151410.56750362,0.00024858,10]
[345574900,1734363042168,-1233.85143237,0.00024858,10]
[345574901,1734363042178,-1648.05594205,0.00024859,10]
[345574902,1734363042188,-830.1723648,0.0002486,10]
[345574903,1734363042197,-200.0,0.0002486,10]
[345574904,1734363042207,-45061.85347201,0.0002486,10]
[345574906,1734363042216,-6827.29666364,0.00024861,10]
[345574907,1734363042226,-9195.82824666,0.00024861,10]
[345574909,1734363042235,-8855.39169153,0.00024861,10]
[345574910,1734363042245,-1250.43343722,0.00024861,10]
[345574911,1734363042256,-29963.36117829,0.00024862,10]
[345574912,1734363042266,-200.0,0.00024862,10]
[345574913,1734363042277,-200.8595355,0.00024863,10]
[345574914,1734363042287,-215.65810852,0.00024864,10]
[345574915,1734363042296,-692.77021744,0.00024865,10]
[345574916,1734363042306,-692.77021745,0.00024865,10]
[345574917,1734363042315,-631.27282587,0.00024866,10]
[345574918,1734363042325,-150.0,0.00024866,2]
[345574919,1734363042334,-1260.26204666,0.00024866,10]
[345574921,1734363042343,-631.27282587,0.00024866,10]
[345574922,1734363042352,-119042.79799845,0.00024866,10]
[345574923,1734363042362,-200.0,0.00024866,10]
[345574924,1734363042374,-200.0,0.00024867,10]
[345574925,1734363042384,-29963.36117829,0.00024867,10]
[345574926,1734363042394,-692.77021745,0.00024867,10]
[345574927,1734363042402,-832.13236137,0.00024867,10]
[345574928,1734363042411,-200.0,0.00024868,10]
[345574929,1734363042421,-28395.30100183,0.00024868,10]
[345574930,1734363042431,-45061.85347201,0.00024868,10]
[345574931,1734363042441,-1648.05594205,0.00024869,10]
[345574932,1734363042450,-119042.79799845,0.00024869,10]
[345574933,1734363042460,-1019.1810428,0.0002487,10]
[345574934,1734363042470,-16237.89237391,0.0002487,10]
[345574935,1734363042480,-119042.79799845,0.0002487,10]
[345574936,1734363042489,-830.1723648,0.00024871,10]
[345574937,1734363042498,-1260.26204666,0.00024871,10]
[345574938,1734363042507,-692.77021744,0.00024872,10]
[345574939,1734363042517,-1869.76337222,0.00024872,10]
[345574940,1734363042527,-200.0,0.00024872,10]
[345574941,1734363042537,-2664.79910704,0.00024872,10]
[345574942,1734363042546,-1869.76337222,0.00024873,10]
[345574943,1734363042555,-1869.76337222,0.00024873,10]
[345574944,1734363042565,-630.77227417,0.00024873,10]
[345574945,1734363042575,-8855.39169153,0.00024873,10]
[345574946,1734363042584,-45061.85347201,0.00024873,10]
[345574947,1734363042593,-832.13236137,0.00024874,10]
[345574948,1734363042602,-150.0,0.00024874,2]
[345574949,1734363042611,-390.30614355,0.00024874,10]
[345574950,1734363042623,-1233.85143237,0.00024875,10]
[345574951,1734363042632,-200.8595355,0.00024875,10]
[345574953,1734363042641,-826.67062308,0.00024875,10]
[345574954,1734363042651,-692.77021744,0.00024875,10]
[345574956,1734363042661,-200.0,0.00024876,10]
[345574957,1734363042671,-150.0,0.00024877,2]
[345574958,1734363042680,-28395.30100183,0.00024877,10]
[345574960,1734363042688,-200.0,0.00024877,10]
[345574961,1734363042698,-28395.30100183,0.00024878,10]
[345574963,1734363042707,-150.0,0.00024878,2]
[345574964,1734363042716,-200.0,0.00024878,10]
[345574966,1734363042726,-119042.79799845,0.00024878,10]
[345574967,1734363042735,-692.77021744,0.00024879,10]
[345574968,1734363042745,-200.8595355,0.00024879,10]
[345574970,1734363042754,-215.65810852,0.00024879,10]
[345574971,1734363042764,-2664.79910704,0.00024879,10]
[345574973,1734363042773,-215.65810852,0.00024879,10]
[345574974,1734363042783,-1409.48718635,0.00024879,10]
[345574976,1734363042792,-631.27282586,0.00024881,10]
[345574977,1734363042801,-826.67062308,0.00024881,10]
[345574979,1734363042812,-631.27282586,0.00024881,10]
[345574980,1734363042822,-200.0,0.00024881,10]
[345574981,1734363042831,-9888.5984641,0.00024882,10]
[345574983,1734363042841,-1869.76337222,0.00024883,10]
[345574984,1734363042851,-6827.29666364,0.00024884,10]
[345574986,1734363042860,-1250.43343722,0.00024884,10]
[345574987,1734363042871,-39091.71572775,0.00024884,10]
[345574989,1734363042881,-16237.89237391,0.00024884,10]
[345574990,1734363042890,-150.0,0.00024884,2]
[345574992,1734363042900,-6827.29666364,0.00024884,10]
[345574993,1734363042909,-1409.48718635,0.00024885,10]
[345574994,1734363042919,-1869.76337222,0.00024885,10]
[345574996,1734363042928,-1260.26204666,0.00024885,10]
[345574997,1734363042938,-45061.85347201,0.00024886,10]
[345574999,1734363042947,-692.77021744,0.00024886,10]
[345575000,1734363042957,-29963.36117829,0.00024886,10]
[345575002,1734363042966,-630.77227417,0.00024886,10]
[345575003,1734363042977,-28395.30100183,0.00024886,10]
[345575005,1734363042986,-151410.56750362,0.00024887,10]
[345575006,1734363042995,-119042.79799845,0.00024887,10]
[345575007,1734363043005,-200.0,0.00024887,10]
[345575009,1734363043015,-9888.5984641,0.00024888,10]
[345575010,1734363043024,-2000.0,0.00024888,2]
[345575012,1734363043033,-631.27282587,0.00024888,10]
[345575013,1734363043043,-390.30614355,0.00024888,10]
[345575015,1734363043052,-104972.52051866,0.00024889,10]
[345575016,1734363043064,-1019.1810428,0.00024889,10]
[345575017,1734363043073,-151.24,0.00024889,2]
[345575019,1734363043082,-630.77227417,0.00024889,10]
[345575020,1734363043092,-119042.79799845,0.00024889,10]
[345575022,1734363043101,-39091.71572775,0.0002489,10]
[345575023,1734363043111,-1409.48718635,0.0002489,10]
[345575025,1734363043122,-830.1723648,0.0002489,10]
[345575026,1734363043132,-608.76858196,0.0002489,2]
[345575027,1734363043141,-10809.67491081,0.0002489,30]
[345575029,1734363043151,-5000.0,0.0002489,2]
[345575030,1734363043161,-631.27282587,0.00024891,10]
[345575032,1734363043170,-215.65810852,0.00024891,10]
[345575033,1734363043180,-1019.1810428,0.00024891,10]
[345575035,1734363043189,-9888.5984641,0.00024891,10]
[345575036,1734363043199,-29963.36117829,0.00024891,10]
[345575038,1734363043208,-1250.43343722,0.00024891,10]
[345575039,1734363043218,-151410.56750362,0.00024892,10]
[345575040,1734363043228,-9195.82824666,0.00024892,10]
[345575042,1734363043237,-2664.79910704,0.00024892,10]
[345575043,1734363043247,-2664.79910704,0.00024892,10]
[345575045,1734363043256,-826.67062308,0.00024892,10]
[345575046,1734363043265,-390.30614355,0.00024892,10]
[345575048,1734363043275,-39091.71572775,0.00024893,10]
[345575049,1734363043284,-1019.1810428,0.00024893,10]
[345575050,1734363043293,-8855.39169153,0.00024894,10]
[345575052,1734363043302,-6827.29666364,0.00024894,10]
[345575053,1734363043311,-45061.85347201,0.00024895,10]
[345575055,1734363043321,-193.9280428,0.00024895,2]
[345575056,1734363043330,-5695.64910146,0.00024895,2]
[345575060,1734363043386,-8855.39169153,0.00024896,10]
[345575061,1734363043395,-9195.82824666,0.00024897,10]
[345575063,1734363043404,-631.27282586,0.00024897,10]
[345575064,1734363043414,-5695.64910146,0.00024898,2]
[345575065,1734363043423,-28395.30100183,0.00024898,10]
[345575067,1734363043432,-200.0,0.00024898,10]
[345575068,1734363043441,-500.0,0.00024898,4]
[345575070,1734363043450,-613.17958088,0.00024898,4]
[345575071,1734363043459,-159.03,0.00024898,4]
[345575073,1734363043468,-161.98,0.00024898,4]
[345575074,1734363043478,-192.19014144,0.00024898,4]
[345575075,1734363043487,-1260.26204666,0.00024898,10]
[345575077,1734363043496,-16237.89237391,0.00024899,10]
[345575078,1734363043506,-9888.5984641,0.00024899,10]
[345575080,1734363043516,-2886.0245,0.00024899,2]
[345575081,1734363043525,-2000.0,0.00024899,2]
[345575083,1734363043535,-500.0,0.00024899,4]
[345575084,1734363043544,-417.41803503,0.00024899,4]
[345575085,1734363043553,-500.0,0.00024899,4]
[345575087,1734363043562,-500.0,0.00024899,4]
[345575088,1734363043571,-503.26834866,0.00024899,4]
[345575089,1734363043580,-500.0,0.00024899,4]
[345575090,1734363043588,-507.21368784,0.00024899,4]
[345575091,1734363043598,-500.0,0.00024899,4]
[345575092,1734363043607,-500.0,0.00024899,4]
[345575093,1734363043617,-500.0,0.00024899,4]
[345575094,1734363043626,-500.0,0.00024899,4]
[345575095,1734363043635,-500.0,0.00024899,4]
[345575096,1734363043644,-500.0,0.00024899,4]
[345575097,1734363043652,-500.0,0.00024899,4]
[345575098,1734363043661,-500.0,0.00024899,4]
[345575100,1734363043671,-505.07318596,0.00024899,4]
[345575101,1734363043680,-504.70019115,0.00024899,4]
[345575103,1734363043689,-500.0,0.00024899,4]
[345575104,1734363043698,-501.90021619,0.00024899,2]
[345575105,1734363043707,-500.0,0.00024899,4]
[345575107,1734363043716,-505.55,0.00024899,4]
[345575108,1734363043725,-9195.82824666,0.00024899,10]
[345575110,1734363043735,-375.75514555,0.00024899,4]
[345575111,1734363043745,-500.0,0.00024899,4]
[345575112,1734363043755,-1869.76337222,0.00024899,10]
[345575114,1734363043764,-200.85953551,0.000249,10]
[345575115,1734363043774,-16237.89237391,0.000249,10]
[345575117,1734363043784,-30000.0,0.000249,3]
[345575118,1734363043794,-173.93363665,0.000249,2]
[345575120,1734363043803,-201.53260833,0.000249,7]
[345575121,1734363043812,-193.9280428,0.000249,2]
[345575123,1734363043822,-5695.64910146,0.000249,2]
[345575124,1734363043831,-176.68,0.000249,7]
[345575125,1734363043840,-18227.67196578,0.000249,2]
[345575127,1734363043849,-401.45,0.000249,31]
[345575128,1734363043858,-401.45,0.000249,31]
[345575130,1734363043867,-401.45,0.000249,31]
[345575131,1734363043876,-401.45,0.000249,31]
[345575132,1734363043885,-401.45,0.000249,31]
[345575134,1734363043894,-401.45,0.000249,31]
[345575135,1734363043903,-401.45,0.000249,31]
[345575137,1734363043912,-401.45,0.000249,31]
[345575138,1734363043921,-401.45,0.000249,31]
[345575140,1734363043930,-401.45,0.000249,31]
[345575141,1734363043939,-401.45,0.000249,31]
[345575142,1734363043948,-401.45,0.000249,31]
[345575144,1734363043957,-401.45,0.000249,31]
[345575145,1734363043967,-401.45,0.000249,31]
[345575146,1734363043976,-401.45,0.000249,31]
[345575147,1734363043985,-401.45,0.000249,31]
[345575148,1734363043995,-269.6811465,0.000249,2]
[345575149,1734363044004,-235.97050378,0.000249,2]
[345575150,1734363044014,-313.81790943,0.000249,2]
[345575151,1734363044023,-1315.7747187,0.000249,2]
[345575152,1734363044032,-406.52281825,0.000249,2]
[345575153,1734363044042,-150.0,0.00024901,2]
[345575154,1734363044052,-1500.0,0.00024902,2]
[345575155,1734363044063,-150.0,0.00024911,2]
[345575156,1734363044072,-1500.0,0.00024921,2]
[345575157,1734363044081,-150.0,0.00024921,2]
[345575158,1734363044090,-150.0,0.00024922,2]
[345575159,1734363044099,-150.0,0.00024927,2]
[345575160,1734363044108,-150.0,0.00024938,2]
[345575161,1734363044119,-150.0,0.00024942,2]
[345575162,1734363044133,-1500.0,0.00024944,2]
[345575163,1734363044144,-150.0,0.00024955,2]
[345575164,1734363044153,-150.0,0.00024966,2]
[345575165,1734363044162,-250.0,0.0002497,2]
[345575166,1734363044171,-250.0,0.0002497,2]
[345575167,1734363044180,-300.0,0.0002497,2]
[345575168,1734363044189,-582.01413331,0.0002497,2]
[345575169,1734363044198,-381.8680061,0.00024973,2]
[345575170,1734363044207,-501.80937079,0.00024973,2]
[345575171,1734363044216,-500.36615932,0.00024973,2]
[345575172,1734363044225,-150.0,0.00024977,2]
[345575173,1734363044234,-150.99,0.0002498,2]
[345575174,1734363044244,-150.0,0.0002498,2]
[345575175,1734363044253,-150.0,0.0002498,2]
[345575176,1734363044262,-151.24,0.0002498,2]
[345575177,1734363044272,-459.82232047,0.00024984,4]
[345575178,1734363044281,-529.75772594,0.00024984,4]
[345575179,1734363044290,-500.0,0.00024984,4]
[345575180,1734363044300,-500.0,0.00024984,4]
[345575181,1734363044309,-500.0,0.00024984,4]
[345575182,1734363044319,-500.0,0.00024985,4]
[345575183,1734363044328,-500.0,0.00024985,4]
[345575184,1734363044337,-151.24,0.00024985,2]
[345575185,1734363044347,-150.0,0.00024986,4]
[345575186,1734363044356,-17419.0,0.00024986,2]
[345575187,1734363044367,-28358.0,0.00024986,2]
[345575188,1734363044376,-15366.0,0.00024986,2]
[345575189,1734363044386,-6651.0,0.00024986,2]
[345575190,1734363044395,-500.0,0.00024989,4]
[345575191,1734363044404,-184.62,0.00024989,4]
[345575192,1734363044414,-500.0,0.00024989,4]
[345575193,1734363044424,-375.26289816,0.00024989,4]
[345575194,1734363044434,-500.0,0.00024989,4]
[345575195,1734363044443,-373.2728929,0.00024989,4]
[345575196,1734363044452,-151.24,0.0002499,2]
[345575198,1734363044462,-1345.68730021,0.0002499,2]
[345575199,1734363044471,-231044.31224788,0.0002499,2]
[345575200,1734363044481,-608.76858196,0.0002499,2]
[345575201,1734363044491,-608.76858196,0.0002499,2]
[345575203,1734363044501,-150.0,0.0002499,2]
[345575204,1734363044510,-1500.0,0.0002499,2]
[345575205,1734363044520,-151.24,0.0002499,2]
[345575206,1734363044530,-151.24,0.0002499,2]
[345575208,1734363044539,-151.24,0.0002499,2]
[345575209,1734363044549,-151.24,0.0002499,2]
[345575210,1734363044559,-151.24,0.0002499,2]
[345575211,1734363044569,-151.24,0.0002499,2]
[345575212,1734363044584,-151.24,0.0002499,2]
[345575213,1734363044595,-151.24,0.0002499,2]
[345575214,1734363044605,-151.24,0.0002499,2]
[345575216,1734363044615,-151.24,0.0002499,2]
[345575217,1734363044624,-151.24,0.0002499,2]
[345575218,1734363044634,-151.24,0.0002499,2]
[345575219,1734363044644,-151.24,0.0002499,2]
[345575220,1734363044653,-151.24,0.0002499,2]
[345575221,1734363044663,-151.24,0.0002499,2]
[345575222,1734363044673,-151.24,0.0002499,2]
[345575223,1734363044683,-151.24,0.0002499,2]
[345575224,1734363044692,-151.24,0.0002499,2]
[345575225,1734363044702,-24414.0463975,0.00024995,2]
[345575226,1734363044711,-20326.1130472,0.00024995,2]
[345575227,1734363044721,-16238.1796969,0.00024995,2]
[345575228,1734363044730,-12150.2463467,0.00024995,2]
[345575229,1734363044740,-8062.3129964,0.00024995,2]
[345575230,1734363044749,-3974.3796461,0.00024995,2]
[345575231,1734363044759,-1500.0,0.00024996,2]
[345575232,1734363044769,-500.0,0.00024998,30]
[345575233,1734363044778,-500.0,0.00024998,4]
[345575234,1734363044787,-2000.0,0.00024999,2]
[345575235,1734363044796,-150.0,0.00024999,30]
[345575236,1734363044805,-5000.0,0.00024999,20]
[345575237,1734363044815,-39031.64,0.00024999,2]
[345575238,1734363044824,-535.77,0.00024999,2]
[345575239,1734363044833,-1784.42131,0.00024999,2]
[345575240,1734363044842,-500.0,0.00024999,4]
[345575241,1734363044852,-500.0,0.00024999,4]
[345575242,1734363044861,-500.0,0.00024999,4]
[345575243,1734363044873,-500.0,0.00024999,4]
[345575244,1734363044882,-500.0,0.00024999,4]
[345575245,1734363044891,-500.0,0.00024999,4]
[345575246,1734363044901,-246.51373756,0.00024999,4]
[345575247,1734363044910,-490.55,0.00024999,4]
[345575248,1734363044920,-999.0,0.00024999,2]
[345575249,1734363044930,-500.0,0.00024999,4]
[345575251,1734363044939,-166.13352734,0.00025,2]
[345575253,1734363044949,-268522.73990561,0.00025,4]
[345575255,1734363044958,-38191.35702585,0.00025,2]
[345575257,1734363044967,-153.0,0.00025,2]
[345575259,1734363044976,-153.0,0.00025,2]
[345575260,1734363044985,-153.0,0.00025,2]
[345575261,1734363044994,-153.0,0.00025,2]
[345575262,1734363045003,-153.0,0.00025,2]
[345575263,1734363045013,-153.0,0.00025,2]
[345575264,1734363045022,-153.0,0.00025,2]
[345575265,1734363045031,-153.0,0.00025,2]
[345575266,1734363045040,-153.0,0.00025,2]
[345575267,1734363045049,-153.0,0.00025,2]
[345575268,1734363045059,-153.0,0.00025,2]
[345575269,1734363045070,-153.0,0.00025,2]
[345575270,1734363045079,-164.97,0.00025,2]
[345575271,1734363045088,-752.15,0.00025,2]
[345575272,1734363045099,-15157883.74052184,0.00025,2]
[345575280,1734363045276,-2859.17687992,0.00025,2]
[345575281,1734363045288,-393.125,0.00025,2]
[345575283,1734363045299,-3483.72135028,0.00025,2]
[345575284,1734363045309,-4423.01540838,0.00025,2]
[345575285,1734363045320,-1821.48801904,0.00025,2]
[345575286,1734363045331,-82731.98295103,0.00025,2]
[345575288,1734363045345,-19712.72470215,0.00025,2]
[345575289,1734363045384,-181.77430208,0.00024657,4]
[345575290,1734363045393,-264.20246487,0.0002489,2]
[345575291,1734363045403,-413.62910792,0.00025,2]
[345575292,1734363045414,-424759.99999989,0.00025,2]
[345575293,1734363045461,-516.46036895,0.00024657,4]
[345575294,1734363045471,-85197.28804896,0.00025,2]
[345575295,1734363045603,-28.11712316,0.00025,2]
[345575296,1734363045615,-744.85797582,0.00025,2]
[345575297,1734363045630,-2651.5425,0.00025,2]
[345575309,1734363046176,-13772.1,0.00025,2]
[345575310,1734363046188,-882.35543186,0.00025,2]
[345575311,1734363046212,-16658.84733714,0.00025,2]
[345575312,1734363046223,-14185.29329018,0.00025,2]
[345575313,1734363046235,-65125.38426186,0.00025,2]
[345575314,1734363046252,-511.60074554,0.00024657,4]
[345575315,1734363046261,-118164.77925436,0.00025,2]
[345575322,1734363048250,150.0,9.925e-05,2]
[345575323,1734363048303,150.0,9.903e-05,2]
[345575324,1734363048868,150.0,9.937e-05,2]
[345575325,1734363048923,150.0,0.00017873,2]
[345575326,1734363049475,150.0,0.00017821,2]
[345575327,1734363049508,150.0,0.00017794,2]
[345575357,1734363883145,450.0,0.00013,2]
[345575358,1734364030118,-714.98,0.00020705,2]
[345575359,1734364030141,-23900.0,0.00020848,2]
[345575360,1734364030164,-26483.56808697,0.00022,15]
[345575361,1734364030193,-12546.82413822,0.00022,15]
[345575362,1734364040096,-8203.60039559,0.00022,15]
[345575363,1734364148082,-1000.0,0.00021999,2]
[345575364,1734364148103,-300.0,0.00021999,2]
[345575365,1734364148133,-16137.64862,0.00022,15]
[345575366,1734364153102,-2115.96875922,0.00022,15]
[345575367,1734364153126,-1000.0,0.00022427,2]
[345575368,1734364153146,-4429.44833678,0.00022434,2]
[345575369,1734364154108,-19470.55166322,0.00022434,2]
[345575370,1734364154141,-1000.0,0.00022463,2]
[345575371,1734364154164,-162.07,0.0002247,2]
[345575372,1734364154187,-150.0,0.00022488,4]
[345575373,1734364154207,-150.0,0.00022488,4]
[345575374,1734364154228,-250.0,0.00022495,2]
[345575375,1734364154249,-813.92,0.000225,2]
[345575401,1734364231783,-170.15,0.0002257,2]
[345575402,1734364231793,-213.31181013,0.00022579,2]
[345575403,1734364231882,-786.68818987,0.00022579,2]
[345575404,1734364231892,-150.0,0.00022603,2]
[345575405,1734364231901,-2000.0,0.00022623,120]
[345575406,1734364231912,-1069.66,0.00022643,2]
[345575407,1734364231921,-250.0,0.00022668,2]
[345575408,1734364231931,-1167.09,0.00022709,2]
[345575409,1734364231940,-300.0,0.0002273,2]
[345575410,1734364231949,-3764.0,0.00022731,2]
[345575411,1734364231958,-817.0,0.00022731,2]
[345575412,1734364231968,-930.0,0.00022731,2]
[345575413,1734364231977,-1253.0,0.00022731,2]
[345575414,1734364231987,-535.0,0.00022731,2]
[345575415,1734364231997,-3630.0,0.00022731,2]
[345575416,1734364232007,-251.0,0.00022731,2]
[345575417,1734364232016,-150.0,0.00022731,2]
[345575418,1734364232025,-3880.0,0.00022731,2]
[345575419,1734364232034,-1099.0,0.00022731,2]
[345575420,1734364232043,-250.0,0.0002277,2]
[345575421,1734364232053,-714.98,0.00022969,2]
[345575422,1734364232062,-46727.17582441,0.00023,15]
[345575423,1734364232074,-10477.60783601,0.00023,15]
[345575425,1734364232083,-200.0,0.00023,2]
[345575427,1734364232093,-486.7,0.00023234,2]
[345575429,1734364232103,-151.53,0.00023338,30]
[345575430,1734364232111,-422.73,0.00023388,2]
[345575432,1734364232121,-250.0,0.00023392,2]
[345575434,1734364232130,-383.46,0.00023392,2]
[345575436,1734364232139,-200.0,0.00023437,2]
[345575437,1734364232149,-200.0,0.0002347,2]
[345575438,1734364232158,-192.51,0.0002347,2]
[345575439,1734364232169,-1167.09,0.0002355,2]
[345575440,1734364232178,-170.15,0.00023698,2]
[345575441,1734364232188,-522.215,0.0002375,2]